bitfinex-derivatives/quotes_SOLF0:USTF0_20260210
["timestamp","ask_amount","ask_price","bid_price","bid_amount"]
[1770749010114,3.68733871,83.37,83.333,10.8059]
[1770749012112,3.73349365,83.378,83.339,4.07587023]
[1770749012417,3.73349365,83.389,83.339,4.07587023]
[1770749013212,3.73349365,83.389,83.341,4.07587023]
[1770749013525,3.73349365,83.389,83.352,4.07587023]
[1770749014626,3.73349365,83.389,83.344,10.8045]
[1770749014824,3.68733871,83.37,83.331,4.07587023]
[1770749015013,3.73349365,83.369,83.331,4.07587023]
[1770749015317,3.73349365,83.369,83.335,10.8057]
[1770749015912,10.8002,83.378,83.336,4.07587023]
[1770749016414,10.8002,83.378,83.338,4.07587023]
[1770749016617,3.73349365,83.387,83.34,3.68733871]
[1770749016816,3.73349365,83.387,83.341,4.07587023]
[1770749017815,3.73349365,83.387,83.345,14.88017023]
[1770749018014,10.7993,83.385,83.345,14.88017023]
[1770749018322,10.7993,83.385,83.346,4.07587023]
[1770749019421,10.7993,83.385,83.345,10.8043]
[1770749019422,3.73349365,83.379,83.333,4.07587023]
[1770749019819,3.73349365,83.369,83.324,10.807]
[1770749020220,10.8002,83.378,83.331,4.07587023]
[1770749021721,10.8002,83.378,83.335,4.07587023]
[1770749022126,10.7986,83.39,83.335,4.07587023]
[1770749022327,14.48366216,83.39,83.335,4.07587023]
[1770749023026,3.68506216,83.37,83.33,4.07587023]
[1770749023827,3.68506216,83.37,83.337,10.8054]
[1770749025121,3.73349365,83.385,83.338,4.07587023]
[1770749026718,3.73349365,83.385,83.347,10.8041]
[1770749026918,3.73349365,83.385,83.338,4.07587023]
[1770749026919,3.68506216,83.38,83.338,4.07587023]
[1770749027323,7.41855581,83.38,83.338,4.07587023]
[1770749027529,7.41855581,83.38,83.33,3.68506216]
[1770749027530,3.73349365,83.376,83.336,10.8054]
[1770749028734,3.73349365,83.374,83.336,10.8054]
[1770749028931,3.68506216,83.37,83.336,10.8054]
[1770749029628,3.73349365,83.369,83.336,10.8054]
[1770749030629,3.68506216,83.38,83.336,10.8054]
[1770749030822,7.66190959,83.38,83.336,10.8054]
[1770749031026,3.97684743,83.379,83.336,10.8054]
[1770749032332,10.8002,83.378,83.336,10.8054]
[1770749033935,10.8002,83.378,83.336,14.64405709]
[1770749034639,3.97684743,83.408,83.361,3.83865709]
[1770749034842,3.68506216,83.42,83.361,3.83865709]
[1770749035042,10.7959,83.411,83.364,3.83865709]
[1770749035632,3.68506216,83.42,83.373,10.8007]
[1770749035837,14.77144743,83.421,83.374,3.83865709]
[1770749036134,3.68506216,83.42,83.374,3.83865709]
[1770749036337,3.68506216,83.42,83.37,3.68506216]
[1770749036338,10.7951,83.418,83.377,3.83865709]
[1770749037737,3.68506216,83.41,83.36,3.68506216]
[1770749037938,3.97684743,83.413,83.37,3.68506216]
[1770749038136,3.68506216,83.42,83.371,3.83865709]
[1770749038743,3.68506216,83.42,83.344,14.87122229]
[1770749038744,3.97684743,83.409,83.361,3.83865709]
[1770749038942,3.68506216,83.42,83.361,3.83865709]
[1770749039444,7.66190959,83.42,83.361,3.83865709]
[1770749039648,3.97684743,83.419,83.361,3.83865709]
[1770749039849,10.7955,83.414,83.367,14.64005709]
[1770749040049,10.7955,83.414,83.367,3.83865709]
[1770749040344,10.7944,83.422,83.38,3.83865709]
[1770749041744,10.795,83.418,83.38,3.83865709]
[1770749041946,3.68506216,83.42,83.38,3.83865709]
[1770749043050,3.97684743,83.421,83.38,3.83865709]
[1770749043252,3.97684743,83.418,83.371,10.8009]
[1770749043554,100.14,83.448,83.358,11.09997675]
[1770749043555,3.97684743,83.409,83.36,3.68506216]
[1770749044150,3.97684743,83.409,83.358,3.83865709]
[1770749044151,3.68506216,83.4,83.358,3.83865709]
[1770749044350,3.97684743,83.405,83.358,3.83865709]
[1770749045854,3.97684743,83.405,83.365,10.8017]
[1770749048355,3.97684743,83.398,83.353,3.83865709]
[1770749050256,3.68506216,83.41,83.361,3.83865709]
[1770749050557,3.97684743,83.412,83.361,3.83865709]
[1770749050955,3.68506216,83.41,83.37,10.8011]
[1770749051759,3.68506216,83.41,83.364,3.83865709]
[1770749052156,3.68506216,83.42,83.377,3.83865709]
[1770749052360,3.68506216,83.42,83.37,3.68506216]
[1770749052361,3.97684743,83.419,83.37,3.68506216]
[1770749052552,3.97684743,83.399,83.343,3.83865709]
[1770749052754,3.97684743,83.399,83.351,3.83865709]
[1770749053858,3.97684743,83.399,83.35,3.68506216]
[1770749053859,3.97684743,83.399,83.352,3.83865709]
[1770749055461,3.97684743,83.399,83.362,3.83865709]
[1770749056852,3.97684743,83.399,83.363,10.802]
[1770749057160,3.97684743,83.396,83.35,3.68506216]
[1770749057463,3.97684743,83.396,83.356,14.64155709]
[1770749057765,3.97684743,83.396,83.316,22.30683344]
[1770749057766,3.97684743,83.396,83.344,3.83865709]
[1770749058058,3.97684743,83.379,83.331,3.83865709]
[1770749059863,3.97684743,83.379,83.34,10.8049]
[1770749063061,3.97684743,83.379,83.333,10.8059]
[1770749063560,3.97684743,83.379,83.331,3.83865709]
[1770749063764,3.97684743,83.379,83.34,10.8049]
[1770749064470,3.86065179,83.386,83.347,3.9690199]
[1770749065566,3.68530795,83.39,83.359,10.8025]
[1770749066062,7.54595974,83.39,83.359,10.8025]
[1770749066267,3.86065179,83.389,83.359,10.8025]
[1770749066464,3.86065179,83.379,83.33,3.9690199]
[1770749067870,3.86065179,83.379,83.33,7.65432785]
[1770749068070,3.86065179,83.379,83.331,3.9690199]
[1770749068566,3.86065179,83.379,83.332,3.9690199]
[1770749069563,3.86065179,83.379,83.334,10.8058]
[1770749069964,3.86065179,83.379,83.334,14.7748199]
[1770749070165,3.68530795,83.39,83.342,3.9690199]
[1770749070365,7.54595974,83.42,83.371,3.9690199]
[1770749071472,3.86065179,83.418,83.371,3.9690199]
[1770749072470,10.7966,83.405,83.36,3.68530795]
[1770749072667,3.86065179,83.404,83.36,3.68530795]
[1770749073067,3.86065179,83.404,83.361,10.8022]
[1770749074370,3.86065179,83.404,83.365,10.8018]
[1770749075970,3.86065179,83.404,83.371,10.801]
[1770749076365,3.86065179,83.404,83.362,3.9690199]
[1770749076569,3.86065179,83.404,83.37,10.8011]
[1770749077175,3.86065179,83.404,83.36,3.68530795]
[1770749077176,3.86065179,83.404,83.363,10.802]
[1770749077478,3.86065179,83.404,83.36,3.68530795]
[1770749078675,3.86065179,83.404,83.369,10.8012]
[1770749079380,3.68530795,83.4,83.361,10.8023]
[1770749079579,3.68530795,83.4,83.351,3.9690199]
[1770749079767,3.86065179,83.399,83.351,3.9690199]
[1770749079974,3.86065179,83.399,83.341,3.9690199]
[1770749080774,3.86065179,83.389,83.346,3.9690199]
[1770749081274,3.68493734,83.38,83.331,3.9690199]
[1770749081674,3.86065179,83.379,83.337,10.8053]
[1770749083178,3.86065179,83.379,83.337,14.7743199]
[1770749083374,3.86065179,83.379,83.33,3.68493734]
[1770749083375,3.86065179,83.4,83.351,3.9690199]
[1770749083580,7.54558913,83.4,83.351,3.9690199]
[1770749084290,3.86065179,83.4,83.351,3.9690199]
[1770749084782,10.7975,83.398,83.355,10.803]
[1770749084979,10.7975,83.398,83.356,3.9690199]
[1770749087486,7.54558913,83.4,83.358,10.8027]
[1770749088475,3.86065179,83.399,83.359,3.9690199]
[1770749090285,3.86065179,83.399,83.361,4.10410449]
[1770749090782,3.68493734,83.41,83.361,4.10410449]
[1770749092278,7.7399652,83.41,83.361,4.10410449]
[1770749092481,4.05502786,83.409,83.361,4.10410449]
[1770749092689,4.05502786,83.409,83.363,14.90610449]
[1770749093186,4.05502786,83.404,83.363,4.10410449]
[1770749093392,4.05502786,83.399,83.357,10.8028]
[1770749093884,4.05502786,83.399,83.363,10.802]
[1770749095388,4.05502786,83.399,83.351,4.10410449]
[1770749096586,3.68493734,83.41,83.369,4.10410449]
[1770749097091,4.05502786,83.409,83.369,4.10410449]
[1770749097779,4.05502786,83.408,83.365,10.8017]
[1770749098788,10.7968,83.404,83.365,10.8017]
[1770749099384,10.7968,83.404,83.365,14.90580449]
[1770749099579,4.05502786,83.408,83.365,14.90580449]
[1770749099988,4.05502786,83.408,83.37,10.801]
[1770749100382,4.05502786,83.408,83.378,10.8001]
[1770749100785,4.05502786,83.435,83.381,4.10410449]
[1770749100987,4.05502786,83.435,83.355,21.606]
[1770749100988,10.7912,83.447,83.401,14.90120449]
[1770749101189,111.4312,83.447,83.402,4.10410449]
[1770749101390,3.67939372,83.46,83.411,4.10410449]
[1770749101586,239.9,83.507,83.4,4.10410449]
[1770749101587,7.73442158,83.45,83.4,4.10410449]
[1770749101789,10.7243359,83.496,83.4,4.10410449]
[1770749101790,7.73442158,83.44,83.4,4.10410449]
[1770749101991,4.05502786,83.429,83.386,4.10410449]
[1770749102296,4.05502786,83.429,83.36,14.87122229]
[1770749102297,4.05502786,83.399,83.329,4.10410449]
[1770749102596,4.05502786,83.359,83.314,4.10410449]
[1770749103097,4.05502786,83.359,83.325,10.8069]
[1770749104494,3.67939372,83.35,83.325,10.8069]
[1770749105390,95.72,83.371,83.303,4.10410449]
[1770749105391,3.67939372,83.34,83.303,4.10410449]
[1770749106300,3.67939372,83.34,83.307,10.8092]
[1770749106596,3.67939372,83.34,83.308,4.10410449]
[1770749107098,4.05502786,83.349,83.308,4.10410449]
[1770749107493,10.8009,83.373,83.31,4.10410449]
[1770749107692,3.67939372,83.37,83.321,4.10410449]
[1770749108093,4.05502786,83.376,83.321,4.10410449]
[1770749108094,3.67939372,83.36,83.321,4.10410449]
[1770749108690,3.67939372,83.36,83.323,4.10410449]
[1770749108890,3.67939372,83.35,83.309,4.10410449]
[1770749109296,3.67939372,83.35,83.286,11.09997675]
[1770749109297,3.67939372,83.34,83.293,14.91520449]
[1770749109498,3.67939372,83.34,83.294,4.10410449]
[1770749110196,4.05502786,83.339,83.294,4.10410449]
[1770749110500,3.67939372,83.32,83.28,4.10410449]
[1770749110796,4.05502786,83.329,83.28,4.10410449]
[1770749111104,3.67939372,83.33,83.29,4.10410449]
[1770749112295,3.67939372,83.33,83.273,95.74]
[1770749112296,3.67939372,83.35,83.301,4.10410449]
[1770749112500,167.8954,83.432,83.3,3.67939372]
[1770749112501,3.67939372,83.36,83.311,4.10410449]
[1770749113601,3.67939372,83.36,83.323,14.91130449]
[1770749115300,4.05502786,83.369,83.33,10.8063]
[1770749115698,3.67939372,83.38,83.324,4.10410449]
[1770749115904,4.05502786,83.394,83.348,4.10410449]
[1770749116107,3.67939372,83.4,83.351,4.10410449]
[1770749116813,3.67939372,83.42,83.371,4.10410449]
[1770749117814,3.67939372,83.42,83.373,4.10410449]
[1770749118511,4.05502786,83.419,83.373,4.10410449]
[1770749119107,4.05502786,83.419,83.375,4.10410449]
[1770749119710,4.05502786,83.432,83.377,4.10410449]
[1770749120208,323.90979863,83.425,83.377,4.10410449]
[1770749120813,4.12178574,83.425,83.382,3.87604512]
[1770749122823,4.12178574,83.425,83.382,14.67554512]
[1770749124519,3.91202773,83.458,83.391,4.00526183]
[1770749124719,9.86254819,83.46,83.391,4.00526183]
[1770749124720,3.91202773,83.456,83.391,4.00526183]
[1770749124921,3.91202773,83.454,83.391,4.00526183]
[1770749125425,3.91202773,83.452,83.391,4.00526183]
[1770749125821,102.72,83.453,83.364,4.00526183]
[1770749125822,3.91202773,83.449,83.364,4.00526183]
[1770749126026,3.91202773,83.439,83.364,4.00526183]
[1770749126327,3.91202773,83.439,83.376,4.00526183]
[1770749127420,3.91202773,83.439,83.391,10.7984]
[1770749128924,3.91202773,83.435,83.382,10.7995]
[1770749129320,3.91202773,83.434,83.382,10.7995]
[1770749129721,3.91202773,83.432,83.382,10.7995]
[1770749130120,3.91202773,83.432,83.385,4.00526183]
[1770749131017,3.91202773,83.432,83.393,10.7981]
[1770749131219,3.91202773,83.432,83.394,4.00526183]
[1770749131631,3.91202773,83.432,83.383,4.00526183]
[1770749132824,3.91202773,83.43,83.383,4.00526183]
[1770749133430,10.794,83.426,83.384,14.80446183]
[1770749133623,3.91202773,83.425,83.385,4.00526183]
[1770749135433,10.7943,83.424,83.385,4.00526183]
[1770749135633,3.91202773,83.424,83.351,4.00526183]
[1770749135830,3.91202773,83.41,83.351,4.00526183]
[1770749136029,3.91202773,83.41,83.321,4.00526183]
[1770749136333,3.91202773,83.393,83.321,4.00526183]
[1770749136532,3.91202773,83.391,83.321,4.00526183]
[1770749137029,10.7958,83.412,83.371,4.00526183]
[1770749137231,3.91202773,83.411,83.358,4.00526183]
[1770749137933,3.91202773,83.409,83.358,4.00526183]
[1770749138532,3.91202773,83.409,83.325,4.00526183]
[1770749138736,3.91202773,83.394,83.343,4.00526183]
[1770749139128,3.91202773,83.394,83.344,10.8044]
[1770749139730,10.7984,83.392,83.344,10.8044]
[1770749139930,3.91202773,83.391,83.343,4.00526183]
[1770749140732,3.91202773,83.391,83.33,4.00526183]
[1770749141034,3.91202773,83.389,83.307,4.00526183]
[1770749141230,14.71362773,83.367,83.307,4.00526183]
[1770749142129,14.71362773,83.367,83.323,10.8072]
[1770749142634,95.82,83.384,83.293,95.7]
[1770749142635,10.8006,83.375,83.331,4.00526183]
[1770749143140,95.82,83.384,83.307,4.00526183]
[1770749143141,3.91202773,83.371,83.307,4.00526183]
[1770749143639,3.91202773,83.355,83.307,4.00526183]
[1770749144739,3.91202773,83.355,83.287,95.72]
[1770749144740,3.91202773,83.351,83.294,4.00526183]
[1770749145640,3.91202773,83.347,83.294,4.00526183]
[1770749146235,3.91202773,83.332,83.283,95.72]
[1770749146440,2.08866628,83.386,83.26,4.00526183]
[1770749146441,3.91202773,83.329,83.26,4.00526183]
[1770749147643,10.8084,83.315,83.266,14.81986183]
[1770749147840,3.91202773,83.314,83.255,4.00526183]
[1770749148441,3.91202773,83.3,83.255,4.00526183]
[1770749149349,3.91202773,83.3,83.255,14.82126183]
[1770749150540,10.8086,83.313,83.264,3.73021206]
[1770749151747,10.8086,83.313,83.265,10.8147]
[1770749152750,14.88977631,83.313,83.265,10.8147]
[1770749153554,4.08117631,83.312,83.265,10.8147]
[1770749153956,4.08117631,83.312,83.264,3.73021206]
[1770749154956,4.08117631,83.31,83.264,3.73021206]
[1770749155349,4.08117631,83.299,83.254,4.94383632]
[1770749155548,9.87505804,83.3,83.254,4.94383632]
[1770749155549,4.08117631,83.282,83.254,4.94383632]
[1770749156353,4.08117631,83.299,83.254,4.94383632]
[1770749157753,4.08117631,83.291,83.254,4.94383632]
[1770749159157,95.74,83.321,83.254,4.94383632]
[1770749159158,10.8101,83.302,83.255,3.73021206]
[1770749160064,14.89127631,83.302,83.255,3.73021206]
[1770749160862,14.89127631,83.302,83.255,14.54621206]
[1770749161464,10.8107,83.297,83.255,3.73021206]
[1770749161663,4.08117631,83.296,83.255,3.73021206]
[1770749162770,10.8109,83.295,83.255,3.73021206]
[1770749163365,4.08117631,83.296,83.256,10.8159]
[1770749163769,10.8067,83.327,83.257,3.73021206]
[1770749164072,4.08117631,83.349,83.287,3.73021206]
[1770749164571,4.08117631,83.337,83.258,3.73021206]
[1770749165471,4.08117631,83.337,83.256,21.6318]
[1770749165472,4.08117631,83.336,83.287,10.8118]
[1770749165673,4.08117631,83.336,83.287,3.73021206]
[1770749166074,10.8062,83.332,83.287,3.73021206]
[1770749167772,4.08117631,83.336,83.287,3.73021206]
[1770749168475,10.807,83.326,83.287,3.73021206]
[1770749169572,4.08117631,83.336,83.288,10.8117]
[1770749170768,4.08117631,83.349,83.294,3.73021206]
[1770749171769,4.08117631,83.349,83.308,10.8091]
[1770749172468,4.08117631,83.346,83.3,10.8102]
[1770749173469,4.08117631,83.346,83.307,10.8093]
[1770749174372,4.08117631,83.346,83.3,10.8102]
[1770749175072,4.08117631,83.343,83.3,10.8102]
[1770749175776,4.08117631,83.343,83.306,10.8094]
[1770749176373,4.08117631,83.342,83.297,10.8106]
[1770749176578,4.08117631,83.342,83.286,3.73021206]
[1770749177476,4.08117631,83.342,83.303,10.8098]
[1770749178071,4.08117631,83.342,83.27,9.87505804]
[1770749178072,4.08117631,83.333,83.269,3.73021206]
[1770749178275,4.08117631,83.329,83.269,3.73021206]
[1770749178668,9.87505804,83.33,83.269,3.73021206]
[1770749178669,4.08117631,83.321,83.269,3.73021206]
[1770749179871,4.08117631,83.319,83.269,3.73021206]
[1770749180283,4.08117631,83.319,83.27,10.8141]
[1770749180777,4.04581059,83.314,83.27,10.8141]
[1770749181380,14.85541059,83.305,83.261,10.8152]
[1770749181579,4.04581059,83.304,83.241,4.01260605]
[1770749182678,3.76735323,83.291,83.247,10.817]
[1770749183181,3.76735323,83.291,83.241,4.01260605]
[1770749183879,14.57875323,83.291,83.246,10.8171]
[1770749184282,3.76735323,83.291,83.254,3.632e-05]
[1770749184576,10.8134,83.276,83.254,3.632e-05]
[1770749185477,10.8121,83.286,83.254,3.632e-05]
[1770749185683,3.76735323,83.291,83.254,3.632e-05]
[1770749186080,3.76735323,83.308,83.254,3.99575936]
[1770749186478,3.76735323,83.308,83.254,3.632e-05]
[1770749186782,10.813,83.279,83.254,3.632e-05]
[1770749187078,10.70077853,83.338,83.254,3.632e-05]
[1770749187079,3.76735323,83.27,83.254,3.632e-05]
[1770749187582,3.76735323,83.27,83.204,3.99572304]
[1770749188279,3.76735323,83.27,83.221,10.8204]
[1770749188280,10.8153,83.261,83.221,10.8204]
[1770749188778,3.76735323,83.26,83.204,3.99572304]
[1770749188987,9.87505804,83.28,83.213,10.8214]
[1770749188988,14.58305323,83.258,83.213,10.8214]
[1770749189182,14.58305323,83.258,83.204,3.99572304]
[1770749189183,3.76735323,83.258,83.204,3.99572304]
[1770749189372,3.76735323,83.273,83.204,3.99572304]
[1770749189575,3.76735323,83.265,83.204,3.99572304]
[1770749190285,14.58225323,83.265,83.22,10.8206]
[1770749191185,14.58225323,83.265,83.22,14.81632304]
[1770749193278,3.76735323,83.264,83.22,14.81632304]
[1770749193586,9.87505804,83.28,83.212,10.8216]
[1770749193587,3.76735323,83.259,83.212,10.8216]
[1770749194585,3.76735323,83.244,83.193,10.8241]
[1770749195279,3.76735323,83.242,83.199,10.8232]
[1770749196987,3.76735323,83.24,83.191,10.8243]
[1770749197191,3.76735323,83.239,83.182,3.99572304]
[1770749197486,3.76735323,83.229,83.182,3.99572304]
[1770749197683,3.76735323,83.229,83.167,3.99572304]
[1770749198790,3.76735323,83.212,83.167,3.99572304]
[1770749199483,3.76735323,83.212,83.153,3.99572304]
[1770749200081,3.76735323,83.159,83.048,3.99572304]
[1770749200395,3.76735323,83.129,83.048,3.99572304]
[1770749200887,3.76735323,83.123,83.05,3.99572304]
[1770749201288,3.76735323,83.123,83.048,3.99572304]
[1770749201700,3.76735323,83.162,83.061,3.99572304]
[1770749201885,3.76735323,83.139,83.04,9.93557414]
[1770749202093,3.76735323,83.119,83.047,9.04219181]
[1770749202288,3.76735323,83.108,83.047,9.04219181]
[1770749202679,3.76735323,83.108,83.048,3.99572304]
[1770749203283,3.76735323,83.096,82.986,3.99572304]
[1770749203485,36.01,83.151,82.94,168.8894]
[1770749203486,3.76735323,83.019,82.94,3.99572304]
[1770749203690,3.76735323,83.019,82.946,10.8563]
[1770749203890,3.76735323,83.019,82.94,3.99572304]
[1770749204090,3.76735323,83.019,82.942,3.99572304]
[1770749204494,3.76735323,83.016,82.911,3.99572304]
[1770749204694,3.76735323,83.016,82.916,3.99572304]
[1770749205091,3.76735323,82.996,82.916,3.99572304]
[1770749205485,9.93557414,83.04,82.916,3.99572304]
[1770749205486,3.76735323,82.994,82.916,3.99572304]
[1770749205690,3.76735323,83.039,82.971,14.84872304]
[1770749205898,3.76735323,83.039,82.97,9.93557414]
[1770749205899,3.76735323,83.075,82.991,3.99572304]
[1770749206292,3.76735323,83.059,82.981,3.99572304]
[1770749206695,3.76735323,83.058,82.981,3.99572304]
[1770749208002,3.76735323,83.058,82.984,3.99572304]
[1770749208198,3.76735323,83.039,82.95,9.93557414]
[1770749208696,3.76735323,83.024,82.945,3.99572304]
[1770749208895,3.76735323,83.022,82.95,9.93557414]
[1770749209095,105.1,83.023,82.95,9.93557414]
[1770749209096,14.61505323,83.012,82.95,9.93557414]
[1770749209303,3.76735323,83.011,82.945,3.99572304]
[1770749209701,3.76735323,83.007,82.93,9.93557414]
[1770749209900,3.76735323,83.007,82.931,3.95162443]
[1770749210097,96.02,83.012,82.95,13.88719857]
[1770749210403,3.79738975,83.011,82.93,13.88719857]
[1770749210601,3.79738975,83.011,82.931,3.95162443]
[1770749210898,3.79738975,83.011,82.93,9.93557414]
[1770749210899,3.79738975,83.03,82.951,3.95162443]
[1770749212207,3.79738975,83.029,82.951,3.95162443]
[1770749212705,3.79738975,83.029,82.95,9.93557414]
[1770749212706,3.79738975,83.029,82.953,3.95162443]
[1770749213196,96.04,83.037,82.973,3.95162443]
[1770749213899,3.79738975,83.045,82.973,3.95162443]
[1770749214098,3.79738975,83.045,82.975,3.95162443]
[1770749214702,3.79738975,83.045,82.981,3.95162443]
[1770749215493,3.79738975,83.045,82.984,10.8514]
[1770749216898,3.79738975,83.045,82.988,3.95162443]
[1770749217500,9.93557414,83.07,82.99,3.95162443]
[1770749217501,3.79738975,83.065,82.99,3.95162443]
[1770749218804,3.79738975,83.063,82.995,10.8499]
[1770749219006,105.56,83.073,83.001,3.95162443]
[1770749219197,3.79738975,83.072,83.001,3.95162443]
[1770749219403,3.79738975,83.072,83.0,9.93557414]
[1770749219404,3.79738975,83.072,83.004,3.95162443]
[1770749220807,3.79738975,83.072,83.011,3.95162443]
[1770749221410,14.63738975,83.072,83.014,3.95162443]
[1770749221905,3.79738975,83.071,83.014,3.95162443]
[1770749222109,9.93557414,83.09,82.996,3.95162443]
[1770749222110,3.79738975,83.064,82.996,3.95162443]
[1770749222304,3.79738975,83.064,82.976,3.95162443]
[1770749222504,3.79738975,83.041,82.977,3.95162443]
[1770749222904,9.93557414,83.05,82.977,3.95162443]
[1770749223109,3.79738975,83.058,82.974,3.95162443]
[1770749223310,3.79738975,83.056,82.974,3.95162443]
[1770749224200,3.79738975,83.056,82.986,3.95162443]
[1770749224201,106.52,83.055,82.986,3.95162443]
[1770749224411,110.31738975,83.055,82.986,3.95162443]
[1770749224614,3.79738975,83.054,82.986,3.95162443]
[1770749224919,10.8453,83.031,82.97,10.8531]
[1770749225116,10.8453,83.031,82.971,3.95162443]
[1770749225413,3.79738975,83.044,82.975,3.95162443]
[1770749226016,3.79738975,83.036,82.975,3.95162443]
[1770749226608,10.847,83.018,82.96,9.93557414]
[1770749227814,10.847,83.018,82.962,10.8543]
[1770749228119,10.847,83.018,82.96,9.93557414]
[1770749228120,10.8458,83.027,82.963,3.95162443]
[1770749228724,10.8458,83.027,82.96,9.93557414]
[1770749228725,14.64188975,83.037,82.975,3.95162443]
[1770749229515,3.79738975,83.037,82.983,10.8515]
[1770749229723,10.8433,83.046,82.984,3.95162443]
[1770749230019,99.91738975,83.054,82.984,3.95162443]
[1770749230224,3.79738975,83.048,82.961,3.95162443]
[1770749230720,3.79738975,83.02,82.961,3.95162443]
[1770749231116,3.79738975,83.02,82.941,3.95162443]
[1770749231312,3.79738975,83.017,82.941,3.95162443]
[1770749231925,10.8513,82.986,82.933,10.858]
[1770749232517,14.64868975,82.986,82.933,10.858]
[1770749232722,3.79738975,82.985,82.905,3.95162443]
[1770749233222,3.79738975,82.949,82.851,3.95162443]
[1770749233433,106.74,82.951,82.881,3.95162443]
[1770749233624,3.79738975,82.955,82.89,10.8636]
[1770749233826,3.79738975,82.955,82.881,3.95162443]
[1770749234323,10.8554,82.954,82.891,3.95162443]
[1770749234530,3.79738975,82.979,82.901,3.95162443]
[1770749235027,3.79738975,82.977,82.92,3.95162443]
[1770749235229,9.93557414,83.0,82.92,3.95162443]
[1770749235230,3.79738975,82.999,82.92,3.95162443]
[1770749235425,3.79738975,82.998,82.92,3.95162443]
[1770749235823,3.79738975,82.972,82.902,3.95162443]
[1770749236221,3.79738975,82.969,82.873,3.95162443]
[1770749236719,10.8567,82.944,82.884,3.95162443]
[1770749236919,96.16,82.966,82.884,3.95162443]
[1770749237230,96.16,82.966,82.872,2.09859792]
[1770749237231,3.79738975,82.969,82.89,3.95162443]
[1770749238633,3.79738975,82.99,82.903,3.95162443]
[1770749239133,3.79738975,82.99,82.935,3.95162443]
[1770749239721,3.79738975,83.008,82.938,3.95162443]
[1770749239928,3.79738975,83.008,82.92,9.96701706]
[1770749239929,9.96701706,83.02,82.941,3.95162443]
[1770749240330,9.96701706,83.02,82.949,3.99280021]
[1770749241232,3.80024399,83.019,82.949,3.99280021]
[1770749241927,3.80024399,83.019,82.913,96.18]
[1770749241928,3.80024399,82.999,82.914,3.99280021]
[1770749242425,3.94757097,82.979,82.914,3.99280021]
[1770749243332,3.94757097,82.959,82.882,4.09050077]
[1770749243537,36.01,82.979,82.882,4.09050077]
[1770749243538,3.94757097,82.939,82.882,4.09050077]
[1770749243727,3.94757097,82.959,82.882,4.09050077]
[1770749243929,96.18,82.96,82.882,4.09050077]
[1770749243930,9.96701706,82.96,82.882,4.09050077]
[1770749244230,3.94757097,82.958,82.882,4.09050077]
[1770749244435,3.94757097,82.939,82.882,4.09050077]
[1770749244634,3.94757097,82.939,82.87,9.96701706]
[1770749244826,3.94757097,82.939,82.871,4.09050077]
[1770749245032,10.8595,82.923,82.871,4.09050077]
[1770749245230,3.94757097,82.939,82.871,4.09050077]
[1770749245435,168.7481,83.01,82.871,4.09050077]
[1770749245436,9.96701706,82.95,82.871,4.09050077]
[1770749245626,10.857,82.942,82.883,4.09050077]
[1770749246331,3.94757097,82.977,82.903,4.09050077]
[1770749247634,3.94757097,82.977,82.89,9.96701706]
[1770749247635,10.8568,82.943,82.89,9.96701706]
[1770749247836,3.94757097,82.958,82.884,4.09050077]
[1770749248236,10.8599,82.919,82.884,4.09050077]
[1770749249132,10.8588,82.928,82.884,4.09050077]
[1770749249536,3.94757097,82.958,82.884,4.09050077]
[1770749250641,10.8589,82.927,82.884,4.09050077]
[1770749252036,10.8604,82.915,82.884,4.09050077]
[1770749252632,21.7082,82.964,82.862,2.09914858]
[1770749252633,4.54890653,82.976,82.9,9.96701706]
[1770749253740,4.54890653,82.976,82.907,10.8613]
[1770749254737,10.8541,82.964,82.907,10.8613]
[1770749254934,4.54890653,82.976,82.9,9.96701706]
[1770749255339,4.54890653,82.976,82.864,14.80090757]
[1770749255340,10.8532,82.97,82.92,9.96701706]
[1770749255543,4.49643127,82.999,82.92,9.96701706]
[1770749256244,4.49643127,82.998,82.907,10.8614]
[1770749256546,4.49643127,82.996,82.907,10.8614]
[1770749257346,4.49515101,82.974,82.907,10.8614]
[1770749257749,4.49515101,82.974,82.914,10.8605]
[1770749258539,10.855,82.957,82.906,10.8615]
[1770749259045,4.49515101,82.974,82.913,10.8606]
[1770749259443,4.49515101,82.974,82.9,9.96701706]
[1770749260045,10.8546,82.96,82.905,10.8617]
[1770749260241,10.8546,82.96,82.9,9.96701706]
[1770749260644,10.8535,82.968,82.919,10.8598]
[1770749260841,4.44059556,82.998,82.9,9.96701706]
[1770749262449,4.44059556,82.998,82.92,9.96701706]
[1770749262951,4.44059556,82.998,82.91,9.96538077]
[1770749263145,4.43883458,82.989,82.91,9.96538077]
[1770749263544,10.8551,82.956,82.91,9.96538077]
[1770749263845,4.43883458,82.989,82.91,9.96538077]
[1770749266346,10.8536,82.968,82.919,10.8598]